Cogmind - Beta 15 @@@ ROGUE MODE // 2025.08.14 @ 23:09:53 Player: puppuppit Result: Destroyed by D-53 Grenadier with Mini Grenade Launcher Performance ------------- Evolutions (0) 0 Regions Visited (2) 400 Robots Destroyed (40) 200 Value Destroyed (674) 674 Prototype IDs (0) 0 Alien Tech Used (0) 0 Bonus (-123) -123 TOTAL SCORE: 1151 Bonus ------- Friendly Fire -123 Cogmind --------- Core Integrity 0/250 Matter 271/300 Energy 99/100 System Corruption 0% Temperature Cool (0) Movement Core (50) Location -10/Mines Parts ------- > --- POWER (1) -------- (None) > --- PROPULSION (2) --- (None) > --- UTILITY (2) ------ (None) > --- WEAPON (2) ------- (None) > --- INVENTORY (5) ---- Light Treads Light Treads Heat Sink Sensor Array Improved Terrain Scanner Peak State ------------ > --- POWER ------------ Light Ion Engine > --- PROPULSION ------- Light Treads Light Treads > --- UTILITY ---------- Small Storage Unit Improved Terrain Scanner > --- WEAPON ----------- EM Pulse Gun Light Assault Rifle > --- INVENTORY -------- Medium Laser [Rating: 9] Favorites ----------- Power Light Ion Engine Engine Light Ion Engine Propulsion Light Treads Treads Light Treads Utility Large Storage Unit Device Improved Terrain Scanner Storage Large Storage Unit Protection Light Armor Plating Weapon Light Assault Rifle Energy Gun EM Pulse Gun Ballistic Gun Light Assault Rifle Launcher Grenade Launcher Build | -11 -10 -10 ------- Run | Yrd Mat Min Slots Evolved . | . . . Power . | . . . Propulsion . | . . . Utility . | . . . Weapon . | . . . Parts Attached 17 | 8 8 1 Power 2 | 1 1 . Engine 2 | 1 1 . Core . | . . . Reactor . | . . . Propulsion 2 | 2 . . Treads 2 | 2 . . Leg . | . . . Wheel . | . . . Hover . | . . . Flight . | . . . Utility 6 | 2 4 . Device 1 | 1 . . Storage 3 | 1 2 . Processor . | . . . Hackware . | . . . Protection 2 | . 2 . Artifact . | . . . Weapon 7 | 3 3 1 Energy Gun 2 | 2 . . Energy Cannon . | . . . Ballistic Gun 3 | 1 2 . Ballistic Cannon . | . . . Launcher 2 | . 1 1 Special Weapon . | . . . Impact Weapon . | . . . Slashing Weapon . | . . . Piercing Weapon . | . . . Special Melee Weapon . | . . . Unidentified Prototypes . | . . . Parts Lost 8 | . 3 5 Power 2 | . 1 1 Propulsion 1 | . . 1 Utility 2 | . 1 1 Weapon 3 | . 1 2 Highest Loss Streak 5 | . 1 5 To Critical Strikes . | . . . Average Backups 7 | . 8 10 Power . | . . . Propulsion 1 | . 1 2 Utility 4 | . 4 5 Weapon 2 | . 2 3 Tool/Special . | . . . Unused Backups 9 | . 2 7 Power . | . . . Propulsion 2 | . . 2 Utility 6 | . 2 4 Weapon 1 | . . 1 Tool/Special . | . . . Average Slot Usage (%) 98 | . 98 98 Engine 13 | . 13 13 Treads 27 | . 27 28 Device 4 | . 5 . Storage 14 | . 14 14 Protection 9 | . 8 13 Energy Gun 5 | . 5 3 Ballistic Gun 22 | . 22 23 Peak Build Rating 9 | 9 9 8 Average Rating 8 | 7 8 7 On Entrance 5 | . 9 8 Naked Turns 4 | . . 4 Heaviest Build 30 | 12 30 29 Greatest Support 40 | 40 40 40 Greatest Overweight (x) 8 | . 8 . Average Overweight (x) . | . . . Largest Inventory Capacity 15 | 8 15 15 Average Capacity 13 | 7 14 14 Most Carried 12 | 2 12 11 Average Carried 7 | . 8 10 Final Capacity 15 | 8 15 5 Final Carried 10 | 2 10 5 Class Distribution -------------------- 100% | Mutant Dominant Class ---------------- Mutant | -10/Materials Mutant | -10/Mines Resources | -11 -10 -10 ----------- Run | Yrd Mat Min Matter Collected 1263 | 372 817 74 Remotely . | . . . Salvage Created 1284 | 256 944 84 Parts 75 | 17 55 3 Haulers Intercepted 2 | . 2 . Recyclers Shooed . | . . . Parts Field Recycled . | . . . Retrieved Matter . | . . . Parts Self-Destructed . | . . . Prevented . | . . . Kills | -11 -10 -10 ------- Run | Yrd Mat Min Combat Hostiles Destroyed 28 | . 17 11 Guns 13 | . 13 . AOE 14 | . 3 11 Classes Destroyed 11 | 3 6 2 Worker 5 | 2 3 . Builder 3 | . 2 1 Tunneler 6 | 4 2 . Hauler 2 | . 2 . Recycler 2 | 1 1 . Operator 1 | . 1 . Watcher 3 | . 3 . Swarmer 3 | . 3 . Grunt 14 | . 14 . Assembled 11 | . . 11 Guerrilla 1 | . . 1 Best Kill Streak 12 | 5 4 12 Combat Bots Only 11 | . 3 11 Max Kills in Single Turn 5 | 1 3 5 Gunslinging . | . . . Exploded 5 | . 3 5 Melee . | . . . Uniques/NPCs Destroyed . | . . . Combat | -11 -10 -10 -------- Run | Yrd Mat Min Hostile Shots Fired 91 | . 71 20 Missed 20 | . 17 3 Hits 71 | . 54 17 Melee 1 | . . 1 Projectile 70 | . 54 16 AOE 15 | . . 15 Critical Strikes 1 | . 1 . Damage Taken 1173 | . 612 561 Core 265 | . 61 204 Absorbed by Shields . | . . . Redirected to Shielding 28 | . . 28 Regen/Repaired (Parts) 197 | . 197 . Core Remaining (%) 100 | 100 . . Volleys Fired 131 | 21 101 9 Largest 2 | 2 2 2 Hottest 70 | 70 70 60 Shots Fired 256 | 41 199 16 Gun 247 | 41 196 10 Cannon . | . . . Launcher 9 | . 3 6 Special . | . . . Kinetic 188 | 21 159 8 Thermal 24 | 4 20 . Explosive 9 | . 3 6 Electromagnetic 35 | 16 17 2 Robot Hit Streak 10 | 6 10 5 Robot Miss Streak 3 | 2 3 1 Penetration Max . | . . . Secondary Targets . | . . . Shots Hit Robots 166 | 27 131 8 Core Hits 96 | 10 62 24 Critical Kills . | . . . Critical Parts Destroyed . | . . . Critical Strikes 2 | . 2 . Burn 2 | . 2 . Melee Attacks . | . . . Impact . | . . . Slashing . | . . . Piercing . | . . . Sneak Attacks . | . . . Combat Hostiles . | . . . Follow-up Attacks . | . . . Damage Inflicted 2648 | 276 1517 855 Guns 1596 | 276 1261 59 Cannons . | . . . Explosions 1052 | . 256 796 Melee . | . . . Ramming . | . . . Kinetic 1050 | 96 895 59 Thermal 201 | 38 163 . Explosive 1052 | . 256 796 Electromagnetic 345 | 142 203 . Impact . | . . . Slashing . | . . . Piercing . | . . . Highest Corruption . | . . . Average Corruption . | . . . Corruption Purged . | . . . Corruption Blocked . | . . . Overload Shots . | . . . Overflow Damage 1 | . . 1 Projectiles . | . . . Explosions 1 | . . 1 Melee . | . . . Knockbacks . | . . . Impact . | . . . Kinetic . | . . . Secondary . | . . . Self-Inflicted Damage 14 | . 14 . Shots 1 | . 1 . Rammed . | . . . Targets Rammed . | . . . Kicked . | . . . Crushed . | . . . Highest Temperature 250 | 60 250 20 Average Temperature 36 | 23 40 12 Received Heat Transfer 318 | . 318 . Effects 1 | . 1 . Interference 1 | . 1 . Siege Activations . | . . . Martial Activations . | . . . Shielding Activations . | . . . Robots Disrupted . | . . . Combat Hostiles . | . . . Robots Corrupted . | . . . Combat Hostiles . | . . . Parts Fried 3 | 2 1 . Impact Corruptions . | . . . Robots Melted 1 | . 1 . Combat Hostiles 1 | . 1 . Parts Melted 1 | . 1 . Heat Transferred 740 | 111 629 . Parts Sabotaged . | . . . Parts Stolen . | . . . Parts Stripped . | . . . Power Chain Reactions . | . . . Alert | -11 -10 -10 ------- Run | Yrd Mat Min Maximum Alert Level . | . . . Low Security (%) 100 | 100 100 100 Level 1 . | . . . Level 2 . | . . . Level 3 . | . . . Level 4 . | . . . Level 5 . | . . . High Security . | . . . Max Security . | . . . Peak Influence 169 | 5 169 61 Initial 61 | . . 61 Average 54 | 1 63 33 Influence Increases 609 | 35 550 24 Destroy 0b10 Robot/C 340 | . 340 . Destroy 0b10 Robot/NC 110 | 35 70 5 Destroy Leader 80 | . 80 . Successful Hack 14 | . 14 . Select Force Hacks 30 | . 30 . Destroy Structure 35 | . 16 19 Influence Decreases 609 | 35 392 182 Entered New Map 97 | . . 97 Time Decay 467 | 35 362 70 Lost Part 45 | . 30 15 Squads Dispatched 4 | . 4 . Investigation 2 | . 2 . Extermination . | . . . Reinforcement 2 | . 2 . Assault . | . . . Garrison . | . . . Intercept . | . . . Searches Triggered . | . . . Construction Impeded . | . . . Haulers Reinforced . | . . . Active Scanning Responses . | . . . Cargo Convoy Interrupts . | . . . Stealth | -11 -10 -10 --------- Run | Yrd Mat Min Distress Signals . | . . . Communications Jammed . | . . . Distress Signals . | . . . Times Spotted 43 | . 29 14 Peak Tracking Total 9 | . 3 9 Tactical Retreats . | . . . Traps | -11 -10 -10 ------- Run | Yrd Mat Min Traps Triggered 3 | . 3 . Indirectly . | . . . Trap Hack Attempts . | . . . Triggered . | . . . Disarmed . | . . . Reprogrammed . | . . . Reused . | . . . Traps Extracted . | . . . Installed . | . . . Triggered . | . . . Machines | -11 -10 -10 ---------- Run | Yrd Mat Min Machines Disabled . | . . . Max in Single Turn . | . . . Machines Repaired . | . . . Machines Dismantled . | . . . Machines Sabotaged . | . . . Overloaded Fab Kills . | . . . Hacking | -11 -10 -10 --------- Run | Yrd Mat Min Machines Accessed 9 | . 9 . Terminals 6 | . 6 . Fabricators . | . . . Repair Stations 1 | . 1 . Recycling Units 2 | . 2 . Scanalyzers . | . . . Garrison Access . | . . . Total Hacks 31 | . 31 . Successful 16 | . 16 . Failed 14 | . 14 . Catastrophic 1 | . 1 . Database Lockouts 1 | . 1 . Manual 27 | . 27 . Terminals 24 | . 24 . Fabricators . | . . . Repair Stations 5 | . 5 . Recycling Units 2 | . 2 . Scanalyzers . | . . . Garrison Access . | . . . Terminal Hacks 3 | . 3 . Robot Analysis 2 | . 2 . Locate Traps 1 | . 1 . Fabricator Hacks . | . . . Repair Station Hacks 2 | . 2 . Scan Component 1 | . 1 . Repair 1 | . 1 . Recycling Unit Hacks . | . . . Scanalyzer . | . . . Garrison Access Hacks . | . . . Unauthorized Hacks 11 | . 11 . Terminals 8 | . 8 . Botnet 3 | . 3 . Skim 5 | . 5 . Fabricators . | . . . Repair Stations 1 | . 1 . Patch 1 | . 1 . Recycling Units 2 | . 2 . Recyclers 1 | . 1 . Tunnel 1 | . 1 . Scanalyzers . | . . . Garrison Access . | . . . Data Cores Recovered . | . . . Used . | . . . Hacking Detections 7 | . 7 . Full Trace Events . | . . . Feedback Events . | . . . Feedback Blocked . | . . . Robot Schematics Acquired . | . . . Robots Built . | . . . Authchips . | . . . Time . | . . . Total Robot Build Rating . | . . . Part Schematics Acquired . | . . . Parts Built . | . . . Authchips . | . . . Time . | . . . Total Part Build Rating . | . . . Parts Repaired 1 | . 1 . Time 26 | . 26 . Parts Recycled . | . . . Recycled Matter . | . . . Retrieved Matter . | . . . Retrieved Components . | . . . Parts Scanalyzed . | . . . Part Schematics Acquired . | . . . Parts Damaged . | . . . Bothacking | -11 -10 -10 ------------ Run | Yrd Mat Min Used RIF Installer . | . . . Robots Hacked . | . . . Non-combat . | . . . Combat . | . . . Robot Hacks Applied . | . . . Relay Couplers Released . | . . . Fabnet Peak Effective % . | . . . Robots Rewired . | . . . Allies Hacked . | . . . Hacks Repelled . | . . . Allies | -11 -10 -10 -------- Run | Yrd Mat Min Total Allies . | . . . Largest Group . | . . . Highest-Rated Group . | . . . Highest-Rated Ally . | . . . Total Orders . | . . . Ally Attacks . | . . . Total Damage . | . . . Kills . | . . . Allies Corrupted . | . . . Allies Melted . | . . . Intel | -11 -10 -10 ------- Run | Yrd Mat Min Active Infowar (turns) 678 | 107 571 . Terrain 678 | 107 571 . Robot Analysis Total 2 | . 2 . Derelict Logs Recovered . | . . . Drone Launches . | . . . Drone Recoveries . | . . . Exploration | -11 -10 -10 ------------- Run | Yrd Mat Min Turns Passed 1953 | 194 1602 157 Spaces Moved 926 | 79 765 82 Core 11 | 2 1 8 Treads 915 | 77 764 74 Legs . | . . . Wheels . | . . . Hover . | . . . Flight . | . . . Fastest Speed 50 | 50 160 50 Average Speed 159 | 157 160 149 Slowest Speed 450 | 160 450 160 Overloaded Moves . | . . . Propulsion Burnouts . | . . . Robots Hopped . | . . . Potential Cave-ins . | . . . Cave-ins Triggered . | . . . Exploration Rate (%) 43 | 4 97 30 Regions Visited 2 Branch Regions 1 Pre-discovered Areas 2 | . 2 . Known Exits Taken . | . . . Unknown Exits Taken 2 | 1 1 . Scrap Searched 1 | . . 1 Spaces Dug 10 | . . 10 Terrain Destroyed 47 | . 18 29 Melee . | . . . Projectile . | . . . AOE 47 | . 18 29 Terrain Rammed . | . . . Walls Destroyed . | . . . Machines Disabled . | . . . Actions | -11 -10 -10 --------- Run | Yrd Mat Min Total 1173 | 109 964 100 Wait 62 | . 59 3 Move 924 | 78 764 82 Hop . | . . . Pick Up 14 | 1 12 1 Fast Attach 18 | 8 10 . Attach 3 | . 2 1 Detach 1 | 1 . . Swap 14 | . 10 4 Drop 6 | . 6 . Fire 131 | 21 101 9 Melee . | . . . Ram . | . . . Kick . | . . . Crush . | . . . Escape Stasis . | . . . Rewire . | . . . Trap . | . . . Miscellaneous . | . . . Route ------- -11/Scrapyard -10/Materials (discovered 6 exits: [*Mat x3] / [*Min x2] / [*Sub]) -10/Mines History --------- Turn | Location | Event 78 | -11/Scrapyard | Discovered new exit (range 15) 195 | -11/Scrapyard | Entered Materials 310 | -10/Materials | Build established: Mutant 438 | -10/Materials | Discovered new exit (range 14) 496 | -10/Materials | Discovered new exit (range 8) 710 | -10/Materials | Discovered new exit (range 10) 1013 | -10/Materials | Discovered new exit (range 14) 1103 | -10/Materials | Discovered new exit (range 15) 1276 | -10/Materials | Discovered new exit (range 15) 1297 | -10/Materials | Central database locked down 1520 | -10/Materials | Learned 4 Subcaves zone layouts 1573 | -10/Materials | Learned Storage garrison access intel 1615 | -10/Materials | Learned 4 Recycling zone layouts 1690 | -10/Materials | Learned location of Storage (-7) 1704 | -10/Materials | Repaired Lgt. Treads 1740 | -10/Materials | Learned Storage terminal intel 1797 | -10/Materials | Entered Mines 1836 | -10/Mines | Assembled infested the area 1841 | -10/Mines | Assisted by a Guerilla fighting off Assembled 1925 | -10/Mines | Destroyed 11 combat bots 1944 | -10/Mines | Core integrity fell below 50% 1950 | -10/Mines | Released all parts (3) 1953 | -10/Mines | Core integrity fell below 20% 1954 | -10/Mines | Destroyed by D-53 Grenadier with Mini Grenade Launcher Last Messages --------------- 01928_ as-15283 destroyed. 01930_ The unstable cave ceiling collapses. 01930_ U-05 Engineer builds a Wall. 01933_ The unstable cave ceiling collapses. 01941_ EM Pulse Gun destroyed. 01944_ U-05 Engineer lays Concrete. 01945_ Ion Engine destroyed. 01945_ U-05 Engineer lays Concrete. 01946_ K-01 Serf collects debris. 01947_ Propulsion Shielding destroyed. 01948_ The unstable cave ceiling collapses. 01948_ U-05 Engineer lays Concrete. 01950_ The unstable cave ceiling collapses. 01950_ Lgt. Treads destroyed. 01950_ Lgt. Assault Rifle destroyed. 01950_ Released Lgt. Treads. 01950_ Released Lrg. Storage Unit. 01950_ Released Lgt. Assault Rifle. 01951_ U-05 Engineer builds a Wall. 01952_ K-01 Serf collects debris. Map ----- +----------------------------------------------------+ | | | | | | | | | | | | | | | ????????????????????????????????????? | | ????????????????????????????????????# | | ??????????????????????????????????## | | ??????????????????????????????????# | | ??????????????????????????####????# | | ?????????????#######?????## ##??## | | ????????????## ##???## #### | | ???????????## ##??# | | ???????????# ! #??# | | ???????????# [![ ##?# ### | | ?????????### ]=! *#?# ##?## # | | ????????## ] =### % ##??#### | | ????????# ### % ##????# | | ????????# # ###%" ##???# | | ???????## u ##%| #???# | | ???????# d = #???## | | ???????# dk #????? | | ???????## ### #???? | | ???????# @ # # #### #???? | | ???????# # # #??## #???# | | ???????## ##???? ##??## | | ????????## # #????? #???# | | ?????????## =% #####????? #???# | | ??????????# #???????? #???# | | ?????????? ??????? ##??## | | ?????????